fUSD/lending_fUSD_20250720
["ID","MTS","AMOUNT","RATE_DAILY","PERIOD"]
[373394045,1752983474043,-670.57,0.00019726,2]
[373394046,1752983474054,-541.28,0.00019726,2]
[373394047,1752983474064,-634.92,0.00019726,2]
[373394048,1752983474074,-503.27873434,0.00019726,2]
[373394049,1752983474084,-769.19,0.00019726,2]
[373394050,1752983474094,-480.0,0.00019726,2]
[373394051,1752983474103,-480.0,0.00019726,2]
[373394052,1752983474112,-1354.22,0.00019726,2]
[373394053,1752983474122,-1092.47,0.00019726,2]
[373394054,1752983474131,-480.0,0.00019726,2]
[373394055,1752983474141,-480.0,0.00019726,2]
[373394056,1752983474151,-480.0,0.00019726,2]
[373394057,1752983474160,-480.0,0.00019726,2]
[373394058,1752983474170,-480.0,0.00019726,2]
[373394059,1752983474179,-480.0,0.00019726,2]
[373394060,1752983474190,-717.34,0.00019726,2]
[373394061,1752983474200,-599.74,0.00019726,2]
[373394062,1752983474209,-480.0,0.00019726,2]
[373394063,1752983474218,-840.34,0.00019726,2]
[373394064,1752983474228,-2426.64,0.00019726,2]
[373394065,1752983474239,-616.16,0.00019726,2]
[373394066,1752983474249,-722.53,0.00019726,2]
[373394067,1752983474258,-598.54,0.00019726,2]
[373394068,1752983474268,-480.0,0.00019726,2]
[373394069,1752983474277,-480.0,0.00019726,2]
[373394070,1752983474287,-861.79,0.00019726,2]
[373394071,1752983474297,-586.0,0.00019726,2]
[373394072,1752983474308,-480.0,0.00019726,2]
[373394073,1752983474317,-480.0,0.00019726,2]
[373394074,1752983474328,-480.0,0.00019726,2]
[373394075,1752983474338,-480.0,0.00019726,2]
[373394076,1752983474348,-532.59585953,0.00019726,2]
[373394077,1752983474357,-535.24,0.00019726,2]
[373394078,1752983474367,-2497.32,0.00019726,2]
[373394079,1752983474377,-480.0,0.00019726,2]
[373394080,1752983474386,-480.0,0.00019726,2]
[373394081,1752983474395,-480.0,0.00019726,2]
[373394082,1752983474404,-480.0,0.00019726,2]
[373394083,1752983474414,-557.5,0.00019726,2]
[373394084,1752983474423,-907.84,0.00019726,2]
[373394085,1752983474432,-480.0,0.00019726,2]
[373394086,1752983474443,-480.0,0.00019726,2]
[373394087,1752983474451,-405.87068988,0.00019726,2]
[373394088,1752983474461,-865.51,0.00019726,2]
[373394089,1752983474471,-480.0,0.00019726,2]
[373394090,1752983474480,-480.0,0.00019726,2]
[373394091,1752983474490,-480.0,0.00019726,2]
[373394092,1752983474499,-3620.19,0.00019726,2]
[373394093,1752983474509,-480.0,0.00019726,2]
[373394094,1752983474519,-191.67533886,0.00019726,2]
[373394095,1752983474529,-513.37536989,0.00019726,2]
[373394096,1752983474539,-480.0,0.00019726,2]
[373394097,1752983474548,-480.0,0.00019726,2]
[373394098,1752983474558,-480.0,0.00019726,2]
[373394099,1752983474568,-560.23,0.00019726,2]
[373394100,1752983474577,-603.48,0.00019726,2]
[373394101,1752983474587,-269.99,0.00019726,2]
[373394102,1752983474596,-531.83531676,0.00019726,2]
[373394103,1752983474671,-480.0,0.00019726,2]
[373394104,1752983474681,-480.0,0.00019726,2]
[373394105,1752983474692,-1069.69,0.00019726,2]
[373394106,1752983474702,-480.0,0.00019726,2]
[373394107,1752983474711,-480.0,0.00019726,2]
[373394108,1752983474721,-480.0,0.00019726,2]
[373394109,1752983474731,-480.0,0.00019726,2]
[373394110,1752983474740,-480.0,0.00019726,2]
[373394111,1752983474750,-480.0,0.00019726,2]
[373394112,1752983474759,-729.23,0.00019726,2]
[373394113,1752983474769,-477.58902645,0.00019726,2]
[373394114,1752983474779,-1171.35,0.00019726,2]
[373394115,1752983474788,-480.0,0.00019726,2]
[373394116,1752983474797,-622.42,0.00019726,2]
[373394117,1752983474806,-576.89,0.00019726,2]
[373394118,1752983474815,-612.71,0.00019726,2]
[373394119,1752983474825,-1058.61,0.00019726,2]
[373394120,1752983474834,-480.0,0.00019726,2]
[373394121,1752983474843,-569.98,0.00019726,2]
[373394122,1752983474852,-665.25,0.00019726,2]
[373394123,1752983474862,-480.0,0.00019726,2]
[373394124,1752983474871,-480.0,0.00019726,2]
[373394125,1752983474882,-666.31,0.00019726,2]
[373394126,1752983474892,-564.81,0.00019726,2]
[373394127,1752983474904,-480.0,0.00019726,2]
[373394128,1752983474914,-480.0,0.00019726,2]
[373394129,1752983474927,-480.0,0.00019726,2]
[373394130,1752983474939,-998.92,0.00019726,2]
[373394131,1752983474949,-480.0,0.00019726,2]
[373394132,1752983474958,-480.0,0.00019726,2]
[373394133,1752983474968,-1362.16,0.00019726,2]
[373394134,1752983474977,-593.30074661,0.00019726,2]
[373394135,1752983474986,-4150.67,0.00019726,2]
[373394136,1752983474996,-572.02,0.00019726,2]
[373394137,1752983475006,-480.0,0.00019726,2]
[373394138,1752983475015,-944.0,0.00019726,2]
[373394139,1752983475025,-480.0,0.00019726,2]
[373394140,1752983475035,-522.49031607,0.00019726,2]
[373394141,1752983475044,-331.03390741,0.00019726,2]
[373394142,1752983475053,-724.16,0.00019726,2]
[373394143,1752983475062,-480.0,0.00019726,2]
[373394144,1752983475071,-480.0,0.00019726,2]
[373394145,1752983475081,-598.27,0.00019726,2]
[373394146,1752983475091,-2786.78,0.00019726,2]
[373394147,1752983475101,-1995.87,0.00019726,2]
[373394148,1752983475110,-2932.88,0.00019726,2]
[373394149,1752983475121,-492.28,0.00019726,2]
[373394150,1752983475131,-1466.09,0.00019726,2]
[373394151,1752983475139,-480.0,0.00019726,2]
[373394152,1752983475149,-2112.79,0.00019726,2]
[373394153,1752983475158,-744.22,0.00019726,2]
[373394154,1752983475168,-620.4,0.00019726,2]
[373394155,1752983475177,-25668.77,0.00019726,2]
[373394156,1752983475186,-1176.16,0.00019726,2]
[373394157,1752983475196,-2179.52,0.00019726,2]
[373394158,1752983475205,-1586.62,0.00019726,2]
[373394159,1752983475215,-1189.06,0.00019726,2]
[373394160,1752983475224,-1511.3,0.00019726,2]
[373394161,1752983475234,-480.0,0.00019726,2]
[373394162,1752983475243,-480.0,0.00019726,2]
[373394163,1752983475253,-480.0,0.00019726,2]
[373394164,1752983475262,-2984.78,0.00019726,2]
[373394165,1752983475272,-1000.0,0.00019726,2]
[373394166,1752983475281,-2090.67,0.00019726,2]
[373394167,1752983475290,-480.0,0.00019726,2]
[373394168,1752983475299,-508.18,0.00019726,2]
[373394169,1752983475309,-480.0,0.00019726,2]
[373394170,1752983475318,-561.29,0.00019726,2]
[373394171,1752983475327,-1108.76,0.00019726,2]
[373394172,1752983475337,-1074.07,0.00019726,2]
[373394173,1752983475347,-599.06,0.00019726,2]
[373394174,1752983475356,-594.66,0.00019726,2]
[373394175,1752983475365,-480.0,0.00019726,2]
[373394176,1752983475374,-480.0,0.00019726,2]
[373394177,1752983475383,-677.5,0.00019726,2]
[373394178,1752983475392,-1173.26,0.00019726,2]
[373394179,1752983475401,-480.0,0.00019726,2]
[373394180,1752983475411,-480.0,0.00019726,2]
[373394181,1752983475420,-1092.95,0.00019726,2]
[373394182,1752983475429,-480.0,0.00019726,2]
[373394183,1752983475439,-554.23,0.00019726,2]
[373394184,1752983475449,-1196.13,0.00019726,2]
[373394185,1752983475458,-480.0,0.00019726,2]
[373394186,1752983475467,-2022.45,0.00019726,2]
[373394187,1752983475476,-480.0,0.00019726,2]
[373394188,1752983475486,-1063.23,0.00019726,2]
[373394189,1752983475496,-480.0,0.00019726,2]
[373394190,1752983475505,-480.0,0.00019726,2]
[373394191,1752983475515,-1415.84,0.00019726,2]
[373394192,1752983475524,-636.97,0.00019726,2]
[373394193,1752983475534,-480.0,0.00019726,2]
[373394194,1752983475543,-963.4,0.00019726,2]
[373394195,1752983475553,-1525.7,0.00019726,2]
[373394196,1752983475562,-1895.08,0.00019726,2]
[373394197,1752983475571,-480.0,0.00019726,2]
[373394198,1752983475580,-1610.82,0.00019726,2]
[373394199,1752983475589,-1215.54,0.00019726,2]
[373394200,1752983475599,-480.0,0.00019726,2]
[373394201,1752983475608,-824.3,0.00019726,2]
[373394202,1752983475617,-1097.31,0.00019726,2]
[373394203,1752983475626,-1533.87,0.00019726,2]
[373394204,1752983475636,-2871.0,0.00019726,2]
[373394205,1752983475645,-574.78,0.00019726,2]
[373394206,1752983475655,-658.86,0.00019726,2]
[373394207,1752983475664,-480.0,0.00019726,2]
[373394208,1752983475673,-480.0,0.00019726,2]
[373394209,1752983475682,-779.13,0.00019726,2]
[373394210,1752983475692,-480.0,0.00019726,2]
[373394211,1752983475702,-715.66,0.00019726,2]
[373394212,1752983475711,-1144.05,0.00019726,2]
[373394213,1752983475721,-480.0,0.00019726,2]
[373394214,1752983475730,-480.0,0.00019726,2]
[373394215,1752983475740,-2201.2,0.00019726,2]
[373394216,1752983475749,-480.0,0.00019726,2]
[373394217,1752983475759,-480.0,0.00019726,2]
[373394218,1752983475769,-480.0,0.00019726,2]
[373394219,1752983475779,-698.78,0.00019726,2]
[373394220,1752983475788,-808.57,0.00019726,2]
[373394221,1752983475797,-801.49,0.00019726,2]
[373394222,1752983475807,-1015.45,0.00019726,2]
[373394223,1752983475816,-480.0,0.00019726,2]
[373394224,1752983475826,-687.01,0.00019726,2]
[373394225,1752983475835,-735.6,0.00019726,2]
[373394226,1752983475845,-744.84,0.00019726,2]
[373394227,1752983475856,-1347.49,0.00019726,2]
[373394228,1752983475866,-1419.47,0.00019726,2]
[373394229,1752983475875,-558.96,0.00019726,2]
[373394230,1752983475884,-767.14,0.00019726,2]
[373394231,1752983475894,-1138.92,0.00019726,2]
[373394232,1752983475904,-2980.46,0.00019726,2]
[373394233,1752983475914,-480.0,0.00019726,2]
[373394234,1752983475928,-2554.58,0.00019726,2]
[373394235,1752983475938,-480.0,0.00019726,2]
[373394236,1752983475951,-5450.5,0.00019726,2]
[373394237,1752983475962,-1452.34,0.00019726,2]
[373394238,1752983475972,-480.0,0.00019726,2]
[373394239,1752983475982,-963.43,0.00019726,2]
[373394240,1752983475991,-480.0,0.00019726,2]
[373394241,1752983476002,-522.13,0.00019726,2]
[373394242,1752983476012,-560.16,0.00019726,2]
[373394243,1752983476022,-871.9,0.00019726,2]
[373394244,1752983476032,-5052.22,0.00019726,2]
[373394245,1752983476041,-480.0,0.00019726,2]
[373394246,1752983476051,-480.0,0.00019726,2]
[373394247,1752983476060,-3565.47,0.00019726,2]
[373394248,1752983476069,-754.49,0.00019726,2]
[373394249,1752983476079,-2105.48,0.00019726,2]
[373394250,1752983476089,-1124.66,0.00019726,2]
[373394251,1752983476098,-1024.27,0.00019726,2]
[373394252,1752983476107,-480.0,0.00019726,2]
[373394253,1752983476116,-480.0,0.00019726,2]
[373394254,1752983476126,-480.0,0.00019726,2]
[373394255,1752983476136,-1090.09,0.00019726,2]
[373394256,1752983476145,-480.0,0.00019726,2]
[373394257,1752983476155,-480.0,0.00019726,2]
[373394258,1752983476164,-480.0,0.00019726,2]
[373394259,1752983476174,-962.24,0.00019726,2]
[373394260,1752983476184,-1611.77,0.00019726,2]
[373394261,1752983476196,-981.4,0.00019726,2]
[373394262,1752983476206,-574.47,0.00019726,2]
[373394263,1752983476216,-1356.81,0.00019726,2]
[373394264,1752983476226,-480.0,0.00019726,2]
[373394265,1752983476236,-546.15,0.00019726,2]
[373394266,1752983476245,-3984.36,0.00019726,2]
[373394267,1752983476255,-480.0,0.00019726,2]
[373394268,1752983476264,-480.0,0.00019726,2]
[373394269,1752983476274,-480.0,0.00019726,2]
[373394270,1752983476284,-926.3,0.00019726,2]
[373394271,1752983476293,-1367.25,0.00019726,2]
[373394272,1752983476303,-6148.42,0.00019726,2]
[373394273,1752983476313,-737.19,0.00019726,2]
[373394274,1752983476322,-2405.36,0.00019726,2]
[373394275,1752983476332,-719.9,0.00019726,2]
[373394276,1752983476342,-480.0,0.00019726,2]
[373394277,1752983476351,-480.0,0.00019726,2]
[373394278,1752983476360,-1466.72,0.00019726,2]
[373394279,1752983476369,-480.0,0.00019726,2]
[373394280,1752983476379,-2248.06,0.00019726,2]
[373394281,1752983476387,-2361.41,0.00019726,2]
[373394282,1752983476397,-588.73,0.00019726,2]
[373394283,1752983476407,-1192.49,0.00019726,2]
[373394284,1752983476416,-634.94,0.00019726,2]
[373394285,1752983476426,-4793.06,0.00019726,2]
[373394286,1752983476436,-9577.74,0.00019726,2]
[373394287,1752983476447,-518.42,0.00019726,2]
[373394288,1752983476457,-1250.81,0.00019726,2]
[373394289,1752983476467,-550.98292664,0.00019726,2]
[373394290,1752983476477,-1405.91,0.00019726,2]
[373394291,1752983476487,-480.0,0.00019726,2]
[373394292,1752983476497,-480.0,0.00019726,2]
[373394293,1752983476507,-1082.66,0.00019726,2]
[373394294,1752983476516,-480.0,0.00019726,2]
[373394295,1752983476526,-480.0,0.00019726,2]
[373394296,1752983476535,-480.0,0.00019726,2]
[373394297,1752983476544,-1036.03,0.00019726,2]
[373394298,1752983476556,-786.35,0.00019726,2]
[373394299,1752983476565,-526.0,0.00019726,2]
[373394300,1752983476575,-480.0,0.00019726,2]
[373394301,1752983476584,-514.43,0.00019726,2]
[373394302,1752983476594,-1678.83,0.00019726,2]
[373394303,1752983476603,-1121.35,0.00019726,2]
[373394304,1752983476613,-831.0,0.00019726,2]
[373394305,1752983476622,-480.0,0.00019726,2]
[373394306,1752983476631,-773.36,0.00019726,2]
[373394307,1752983476641,-718.25,0.00019726,2]
[373394308,1752983476651,-805.94,0.00019726,2]
[373394309,1752983476660,-601.17,0.00019726,2]
[373394310,1752983476670,-763.26,0.00019726,2]
[373394311,1752983476679,-665.29,0.00019726,2]
[373394312,1752983476690,-480.0,0.00019726,2]
[373394313,1752983476699,-480.0,0.00019726,2]
[373394314,1752983476710,-480.0,0.00019726,2]
[373394315,1752983476720,-1187.59,0.00019726,2]
[373394316,1752983476730,-3301.21,0.00019726,2]
[373394317,1752983476740,-480.0,0.00019726,2]
[373394318,1752983476750,-480.0,0.00019726,2]
[373394319,1752983476759,-480.0,0.00019726,2]
[373394320,1752983476769,-821.65,0.00019726,2]
[373394321,1752983476779,-1685.67,0.00019726,2]
[373394323,1752983476789,-4076.0,0.00019726,2]
[373394324,1752983476798,-3695.88,0.00019726,2]
[373394325,1752983476808,-731.19,0.00019726,2]
[373394327,1752983476818,-670.23,0.00019726,2]
[373394328,1752983476829,-1374.67,0.00019726,2]
[373394329,1752983476838,-480.0,0.00019726,2]
[373394330,1752983476848,-480.0,0.00019726,2]
[373394331,1752983476858,-1193.89,0.00019726,2]
[373394332,1752983476868,-1151.96,0.00019726,2]
[373394333,1752983476879,-1796.15,0.00019726,2]
[373394334,1752983476890,-850.76,0.00019726,2]
[373394335,1752983476900,-480.0,0.00019726,2]
[373394336,1752983476910,-480.0,0.00019726,2]
[373394337,1752983476920,-480.0,0.00019726,2]
[373394338,1752983476932,-1053.53,0.00019726,2]
[373394339,1752983476942,-1267.3,0.00019726,2]
[373394340,1752983476951,-536.82,0.00019726,2]
[373394341,1752983476963,-156.587,0.00019726,2]
[373394342,1752983476972,-2665.17445914,0.00019735,2]
[373394343,1752983476982,-313.0,0.00019756,2]
[373394344,1752983476991,-200.0,0.00019759,2]
[373394345,1752983477003,-310.46491208,0.0001976,2]
[373394346,1752983477013,-392.92115914,0.00019762,2]
[373394347,1752983477022,-168.0,0.00019767,2]
[373394348,1752983477031,-313.0,0.0001979,2]
[373394349,1752983477041,-498.0,0.0001983,2]
[373394350,1752983477051,-150.0,0.00019831,2]
[373394351,1752983477061,-759.79,0.00019834,2]
[373394352,1752983477071,-620.49,0.00019834,2]
[373394353,1752983477080,-770.66,0.00019834,2]
[373394354,1752983477090,-405.909386,0.00019835,2]
[373394355,1752983477100,-347.586308,0.00019835,2]
[373394356,1752983477110,-524.535421,0.00019835,2]
[373394357,1752983477119,-480.0,0.00019835,2]
[373394358,1752983477129,-520.60030116,0.00019835,2]
[373394359,1752983477138,-480.0,0.00019835,2]
[373394360,1752983477148,-480.0,0.00019835,2]
[373394361,1752983477157,-511.57598337,0.00019835,2]
[373394362,1752983477167,-480.0,0.00019835,2]
[373394363,1752983477177,-600.83927345,0.00019835,2]
[373394364,1752983477187,-480.0,0.00019835,2]
[373394365,1752983477197,-480.0,0.00019835,2]
[373394366,1752983477207,-480.0,0.00019835,2]
[373394367,1752983477216,-480.0,0.00019835,2]
[373394368,1752983477228,-480.0,0.00019835,2]
[373394369,1752983477237,-362.84676531,0.00019835,2]
[373394370,1752983477247,-627.64986787,0.00019835,2]
[373394371,1752983477257,-488.57,0.00019835,2]
[373394372,1752983477267,-526.79,0.00019835,2]
[373394373,1752983477277,-480.0,0.00019835,2]
[373394374,1752983477287,-480.0,0.00019835,2]
[373394375,1752983477297,-480.0,0.00019835,2]
[373394376,1752983477307,-652.55,0.00019835,2]
[373394377,1752983477317,-480.0,0.00019835,2]
[373394378,1752983477327,-480.0,0.00019835,2]
[373394379,1752983477337,-480.0,0.00019835,2]
[373394380,1752983477347,-294.05498403,0.00019835,2]
[373394381,1752983477356,-480.0,0.00019835,2]
[373394382,1752983477366,-480.0,0.00019835,2]
[373394383,1752983477376,-496.94,0.00019835,2]
[373394384,1752983477385,-480.0,0.00019835,2]
[373394385,1752983477395,-480.0,0.00019835,2]
[373394386,1752983477405,-554.5612911,0.00019835,2]
[373394387,1752983477414,-480.0,0.00019835,2]
[373394388,1752983477424,-800.28,0.00019835,2]
[373394389,1752983477434,-480.0,0.00019835,2]
[373394390,1752983477444,-678.96,0.00019835,2]
[373394391,1752983477454,-497.02,0.00019835,2]
[373394392,1752983477464,-480.0,0.00019835,2]
[373394393,1752983477473,-480.0,0.00019835,2]
[373394394,1752983477483,-480.0,0.00019835,2]
[373394395,1752983477494,-621.54,0.00019835,2]
[373394396,1752983477503,-480.0,0.00019835,2]
[373394397,1752983477513,-480.0,0.00019835,2]
[373394398,1752983477523,-480.0,0.00019835,2]
[373394400,1752983477532,-480.0,0.00019835,2]
[373394401,1752983477542,-480.0,0.00019835,2]
[373394402,1752983477551,-596.67,0.00019835,2]
[373394403,1752983477561,-602.0,0.00019835,2]
[373394404,1752983477572,-480.0,0.00019835,2]
[373394405,1752983477582,-570.86,0.00019835,2]
[373394406,1752983477591,-480.0,0.00019835,2]
[373394407,1752983477601,-500.41,0.00019835,2]
[373394408,1752983477611,-526.47740691,0.00019835,2]
[373394409,1752983477620,-480.0,0.00019835,2]
[373394410,1752983477630,-223.70556813,0.00019835,2]
[373394411,1752983477639,-3264.72,0.00019835,2]
[373394412,1752983477649,-838.65,0.00019835,2]
[373394413,1752983477658,-709.89,0.00019835,2]
[373394414,1752983477668,-713.6,0.00019835,2]
[373394415,1752983477677,-480.0,0.00019835,2]
[373394416,1752983477686,-480.0,0.00019835,2]
[373394417,1752983477698,-894.47,0.00019835,2]
[373394418,1752983477708,-480.0,0.00019835,2]
[373394419,1752983477717,-691.65,0.00019835,2]
[373394420,1752983477727,-480.0,0.00019835,2]
[373394421,1752983477737,-480.0,0.00019835,2]
[373394422,1752983477747,-480.0,0.00019835,2]
[373394423,1752983477756,-480.0,0.00019835,2]
[373394424,1752983477766,-480.0,0.00019835,2]
[373394425,1752983477775,-480.0,0.00019835,2]
[373394426,1752983477785,-480.0,0.00019835,2]
[373394427,1752983477795,-480.0,0.00019835,2]
[373394428,1752983477804,-480.0,0.00019835,2]
[373394429,1752983477813,-480.0,0.00019835,2]
[373394430,1752983477823,-511.78,0.00019835,2]
[373394431,1752983477832,-480.0,0.00019835,2]
[373394432,1752983477842,-480.0,0.00019835,2]
[373394433,1752983477851,-480.0,0.00019835,2]
[373394434,1752983477861,-481.61,0.00019835,2]
[373394435,1752983477870,-480.0,0.00019835,2]
[373394436,1752983477879,-577.39,0.00019835,2]
[373394437,1752983477889,-1456.33,0.00019835,2]
[373394438,1752983477898,-480.0,0.00019835,2]
[373394439,1752983477908,-569.49,0.00019835,2]
[373394440,1752983477917,-480.0,0.00019835,2]
[373394441,1752983477930,-480.0,0.00019835,2]
[373394442,1752983477940,-480.0,0.00019835,2]
[373394443,1752983477950,-495.68,0.00019835,2]
[373394444,1752983477960,-508.65,0.00019835,2]
[373394445,1752983477971,-480.0,0.00019835,2]
[373394446,1752983477981,-480.0,0.00019835,2]
[373394447,1752983477990,-480.0,0.00019835,2]
[373394448,1752983478000,-480.0,0.00019835,2]
[373394449,1752983478010,-480.0,0.00019835,2]
[373394450,1752983478019,-480.0,0.00019835,2]
[373394451,1752983478029,-480.0,0.00019835,2]
[373394452,1752983478039,-1715.52,0.00019835,2]
[373394453,1752983478049,-877.24,0.00019835,2]
[373394454,1752983478059,-480.0,0.00019835,2]
[373394455,1752983478068,-480.0,0.00019835,2]
[373394456,1752983478078,-480.0,0.00019835,2]
[373394457,1752983478087,-480.0,0.00019835,2]
[373394458,1752983478097,-480.0,0.00019835,2]
[373394459,1752983478107,-480.0,0.00019835,2]
[373394460,1752983478117,-480.0,0.00019835,2]
[373394461,1752983478127,-749.25,0.00019835,2]
[373394462,1752983478137,-480.0,0.00019835,2]
[373394463,1752983478147,-480.0,0.00019835,2]
[373394464,1752983478158,-480.0,0.00019835,2]
[373394465,1752983478168,-670.57,0.00019835,2]
[373394466,1752983478179,-541.28,0.00019835,2]
[373394467,1752983478190,-634.92,0.00019835,2]
[373394468,1752983478200,-769.19,0.00019835,2]
[373394469,1752983478210,-480.0,0.00019835,2]
[373394470,1752983478220,-480.0,0.00019835,2]
[373394471,1752983478231,-1354.22,0.00019835,2]
[373394472,1752983478241,-1092.47,0.00019835,2]
[373394473,1752983478252,-555.91389439,0.00019835,2]
[373394474,1752983478262,-480.0,0.00019835,2]
[373394475,1752983478272,-480.0,0.00019835,2]
[373394476,1752983478282,-480.0,0.00019835,2]
[373394477,1752983478292,-480.0,0.00019835,2]
[373394478,1752983478301,-480.0,0.00019835,2]
[373394479,1752983478311,-717.34,0.00019835,2]
[373394480,1752983478321,-599.74,0.00019835,2]
[373394481,1752983478331,-840.34,0.00019835,2]
[373394482,1752983478340,-2426.64,0.00019835,2]
[373394483,1752983478350,-616.16,0.00019835,2]
[373394484,1752983478360,-722.53,0.00019835,2]
[373394485,1752983478370,-598.54,0.00019835,2]
[373394486,1752983478380,-480.0,0.00019835,2]
[373394487,1752983478390,-480.0,0.00019835,2]
[373394488,1752983478400,-861.79,0.00019835,2]
[373394489,1752983478410,-586.0,0.00019835,2]
[373394490,1752983478420,-480.0,0.00019835,2]
[373394491,1752983478430,-480.0,0.00019835,2]
[373394492,1752983478441,-480.0,0.00019835,2]
[373394493,1752983478452,-500.0,0.00019835,2]
[373394494,1752983478462,-535.24,0.00019835,2]
[373394495,1752983478472,-480.0,0.00019835,2]
[373394496,1752983478482,-480.0,0.00019835,2]
[373394497,1752983478491,-475.02679514,0.00019835,2]
[373394498,1752983478502,-480.0,0.00019835,2]
[373394499,1752983478512,-557.5,0.00019835,2]
[373394500,1752983478522,-907.84,0.00019835,2]
[373394501,1752983478701,-480.0,0.00019835,2]
[373394502,1752983478730,-552.93530247,0.00019835,2]
[373394503,1752983478740,-865.51,0.00019835,2]
[373394504,1752983478749,-624.30156029,0.00019835,2]
[373394505,1752983478758,-582.98,0.00019835,2]
[373394506,1752983478767,-480.0,0.00019835,2]
[373394507,1752983478779,-3620.19,0.00019835,2]
[373394508,1752983478788,-480.0,0.00019835,2]
[373394509,1752983478798,-480.0,0.00019835,2]
[373394510,1752983478807,-544.19135175,0.00019835,2]
[373394511,1752983478817,-480.0,0.00019835,2]
[373394512,1752983478827,-560.23,0.00019835,2]
[373394513,1752983478836,-603.48,0.00019835,2]
[373394514,1752983478847,-480.0,0.00019835,2]
[373394515,1752983478856,-480.0,0.00019835,2]
[373394516,1752983478866,-1069.69,0.00019835,2]
[373394517,1752983478876,-431.06458356,0.00019835,2]
[373394518,1752983478886,-480.0,0.00019835,2]
[373394519,1752983478896,-419.69489889,0.00019835,2]
[373394520,1752983478905,-480.0,0.00019835,2]
[373394521,1752983478915,-480.0,0.00019835,2]
[373394522,1752983478927,-729.23,0.00019835,2]
[373394523,1752983478936,-480.0,0.00019835,2]
[373394524,1752983478948,-1171.35,0.00019835,2]
[373394525,1752983478957,-622.42,0.00019835,2]
[373394526,1752983478967,-576.89,0.00019835,2]
[373394527,1752983478976,-612.71,0.00019835,2]
[373394528,1752983478985,-1058.61,0.00019835,2]
[373394529,1752983478995,-460.0,0.00019835,2]
[373394530,1752983479006,-569.98,0.00019835,2]
[373394531,1752983479015,-665.25,0.00019835,2]
[373394532,1752983479025,-480.0,0.00019835,2]
[373394533,1752983479034,-480.0,0.00019835,2]
[373394534,1752983479044,-666.31,0.00019835,2]
[373394535,1752983479053,-564.81,0.00019835,2]
[373394536,1752983479062,-480.0,0.00019835,2]
[373394537,1752983479071,-282.19254633,0.00019835,2]
[373394538,1752983479080,-998.92,0.00019835,2]
[373394539,1752983479090,-504.08023605,0.00019835,2]
[373394540,1752983479100,-523.32834835,0.00019835,2]
[373394541,1752983479110,-1362.16,0.00019835,2]
[373394542,1752983479119,-4150.67,0.00019835,2]
[373394543,1752983479129,-572.02,0.00019835,2]
[373394544,1752983479138,-480.0,0.00019835,2]
[373394545,1752983479147,-944.0,0.00019835,2]
[373394546,1752983479157,-724.16,0.00019835,2]
[373394547,1752983479166,-480.0,0.00019835,2]